lending/lending_fUSD_20250621
["ID","MTS","AMOUNT","RATE_DAILY","PERIOD"]
[366833826,1750495847615,-1266.09179524,0.00021672,2]
[366833827,1750495847625,-224.022434,0.00021673,2]
[366833828,1750495847635,-150.0,0.00021674,2]
[366833829,1750495847644,-1000.0,0.00021675,2]
[366833830,1750495847654,-1000.0,0.00021676,2]
[366833831,1750495847664,-150.0,0.00021677,2]
[366833832,1750495847674,-1000.0,0.0002168,2]
[366833833,1750495847683,-1000.0,0.00021681,2]
[366833834,1750495847693,-150.0,0.00021681,2]
[366833835,1750495847702,-151.0,0.00021682,2]
[366833836,1750495847712,-239.673524,0.00021682,2]
[366833837,1750495847722,-151.0,0.00021682,2]
[366833838,1750495847731,-315.379423,0.00021682,2]
[366833839,1750495847741,-315.379423,0.00021682,2]
[366833840,1750495847751,-1520.647094,0.00021682,2]
[366833841,1750495847760,-1520.647094,0.00021682,2]
[366833842,1750495847770,-151.0,0.00021682,2]
[366833843,1750495847780,-219.724142,0.00021682,2]
[366833844,1750495847789,-219.724142,0.00021682,2]
[366833845,1750495847799,-151.0,0.00021682,2]
[366833846,1750495847809,-150.0,0.00021682,2]
[366833847,1750495847819,-150.0,0.00021684,2]
[366833848,1750495847828,-150.0,0.00021685,2]
[366833849,1750495847838,-150.0,0.00021687,2]
[366833850,1750495847847,-150.0,0.0002169,2]
[366833851,1750495847856,-1000.0,0.0002169,2]
[366833852,1750495847866,-1000.0,0.0002169,2]
[366833853,1750495847876,-150.0,0.00021691,2]
[366833854,1750495847886,-150.0,0.00021692,2]
[366833855,1750495847895,-150.0,0.00021692,2]
[366833856,1750495847905,-1000.0,0.00021693,2]
[366833857,1750495847915,-151.0,0.00021693,2]
[366833858,1750495847925,-151.0,0.00021693,2]
[366833859,1750495847935,-414.357737,0.00021693,2]
[366833860,1750495847945,-414.357737,0.00021693,2]
[366833861,1750495847954,-261.864563,0.00021693,2]
[366833862,1750495847964,-261.864563,0.00021693,2]
[366833863,1750495847974,-151.0,0.00021693,2]
[366833864,1750495847984,-150.0,0.00021694,2]
[366833865,1750495847994,-150.0,0.00021697,2]
[366833866,1750495848003,-150.0,0.00021698,2]
[366833867,1750495848013,-937.57710399,0.000217,2]
[366833868,1750495848022,-161.99834733,0.000217,2]
[366833869,1750495848032,-305.6965806,0.000217,2]
[366833870,1750495848045,-150.0,0.00021707,2]
[366833871,1750495848055,-842.73500723,0.00021708,2]
[366833872,1750495848064,-150.0,0.00021709,2]
[366833873,1750495848073,-150.0,0.0002171,2]
[366833874,1750495848083,-1000.0,0.0002171,2]
[366833875,1750495848093,-150.0,0.00021712,2]
[366833876,1750495848103,-150.0,0.00021713,2]
[366833877,1750495848112,-150.0,0.00021715,2]
[366833878,1750495848121,-150.0,0.00021718,2]
[366833879,1750495848131,-150.0,0.00021724,2]
[366833880,1750495848141,-1000.0,0.00021725,2]
[366833881,1750495848150,-150.0,0.00021727,2]
[366833882,1750495848160,-150.0,0.00021727,2]
[366833883,1750495848170,-600.0,0.00021727,2]
[366833884,1750495848180,-150.0,0.0002173,2]
[366833885,1750495848190,-150.0,0.00021735,2]
[366833886,1750495848200,-150.0,0.00021738,2]
[366833887,1750495848210,-150.0,0.0002174,2]
[366833888,1750495848221,-1000.0,0.00021743,2]
[366833889,1750495848231,-150.0,0.00021746,2]
[366833890,1750495848242,-150.0,0.0002175,2]
[366833891,1750495848252,-150.0,0.0002175,2]
[366833892,1750495848263,-150.0,0.0002175,2]
[366833893,1750495848272,-150.0,0.0002175,2]
[366833894,1750495848282,-150.0,0.00021753,2]
[366833895,1750495848291,-150.0,0.00021754,2]
[366833896,1750495848300,-151.0,0.00021759,2]
[366833897,1750495848310,-151.0,0.00021759,2]
[366833898,1750495848319,-151.0,0.00021759,2]
[366833899,1750495848329,-498.259736,0.00021759,2]
[366833900,1750495848339,-498.259736,0.00021759,2]
[366833901,1750495848349,-150.0,0.00021759,2]
[366833902,1750495848358,-1000.0,0.0002176,2]
[366833903,1750495848368,-1000.0,0.00021761,2]
[366833904,1750495848378,-150.0,0.00021761,2]
[366833905,1750495848388,-150.0,0.00021761,2]
[366833906,1750495848398,-150.0,0.00021765,2]
[366833907,1750495848407,-150.0,0.00021765,2]
[366833908,1750495848419,-1000.0,0.0002177,2]
[366833909,1750495848428,-1000.0,0.0002177,2]
[366833910,1750495848437,-156.71,0.00021773,2]
[366833911,1750495848447,-150.0,0.00021774,2]
[366833912,1750495848458,-150.0,0.00021776,2]
[366833913,1750495848467,-150.0,0.00021777,2]
[366833914,1750495848477,-150.0,0.00021778,2]
[366833915,1750495848487,-150.0,0.00021779,2]
[366833916,1750495848497,-150.0,0.00021779,2]
[366833917,1750495848506,-150.0,0.0002178,2]
[366833918,1750495848516,-150.0,0.0002178,2]
[366833919,1750495848526,-1000.0,0.00021784,2]
[366833920,1750495848536,-1000.0,0.00021784,2]
[366833921,1750495848546,-150.0,0.00021785,2]
[366833922,1750495848556,-150.0,0.00021785,2]
[366833923,1750495848565,-150.0,0.00021787,2]
[366833924,1750495848575,-1000.0,0.00021787,2]
[366833925,1750495848585,-150.0,0.00021792,2]
[366833926,1750495848595,-150.0,0.00021793,2]
[366833927,1750495848604,-150.0,0.00021793,2]
[366833928,1750495848613,-150.0,0.00021797,2]
[366833929,1750495848623,-1000.0,0.00021799,2]
[366833930,1750495848633,-150.0,0.00021799,2]
[366833931,1750495848642,-2484.0,0.000218,2]
[366833932,1750495848653,-110000.0,0.000218,5]
[366833933,1750495848663,-151.0,0.000218,2]
[366833934,1750495848673,-451.89886,0.000218,2]
[366833935,1750495848683,-451.89886,0.000218,2]
[366833936,1750495848692,-151.0,0.000218,2]
[366833937,1750495848701,-153.514856,0.000218,2]
[366833938,1750495848712,-231.40478,0.000218,2]
[366833939,1750495848722,-151.0,0.000218,2]
[366833940,1750495848732,-151.0,0.000218,2]
[366833941,1750495848742,-151.0,0.000218,2]
[366833942,1750495848752,-498.259736,0.000218,2]
[366833943,1750495848762,-498.259736,0.000218,2]
[366833944,1750495848772,-1289.885616,0.000218,2]
[366833945,1750495848782,-1289.885616,0.000218,2]
[366833946,1750495848792,-151.0,0.000218,2]
[366833947,1750495848801,-484.07947,0.000218,2]
[366833948,1750495848810,-484.07947,0.000218,2]
[366833949,1750495848821,-151.0,0.000218,2]
[366833950,1750495848831,-842.903434,0.000218,2]
[366833951,1750495848841,-842.903434,0.000218,2]
[366833952,1750495848851,-210.440574,0.000218,2]
[366833953,1750495848862,-150.0,0.000218,2]
[366833954,1750495848871,-151.0,0.000218,2]
[366833955,1750495848881,-151.0,0.000218,2]
[366833956,1750495848891,-957.767967,0.000218,2]
[366833957,1750495848901,-151.0,0.000218,2]
[366833958,1750495848911,-957.767967,0.000218,2]
[366833959,1750495848921,-151.0,0.000218,2]
[366833960,1750495848931,-315.379423,0.000218,2]
[366833961,1750495848941,-315.379423,0.000218,2]
[366833962,1750495848951,-151.0,0.000218,2]
[366833963,1750495848960,-1520.647094,0.000218,2]
[366833964,1750495848971,-1520.647094,0.000218,2]
[366833965,1750495848981,-6901.933708,0.000218,2]
[366833966,1750495848990,-6901.933708,0.000218,2]
[366833967,1750495848999,-151.0,0.000218,2]
[366833968,1750495849010,-264.046825,0.000218,2]
[366833969,1750495849019,-264.046825,0.000218,2]
[366833970,1750495849029,-233.395262,0.000218,2]
[366833971,1750495849042,-233.395262,0.000218,2]
[366833972,1750495849051,-219.724142,0.000218,2]
[366833973,1750495849061,-219.724142,0.000218,2]
[366833974,1750495849071,-151.0,0.000218,2]
[366833975,1750495849081,-151.0,0.000218,2]
[366833976,1750495849091,-150.0,0.000218,2]
[366833977,1750495849101,-151.0,0.000218,2]
[366833978,1750495849113,-414.357737,0.000218,2]
[366833979,1750495849123,-414.357737,0.000218,2]
[366833980,1750495849133,-151.0,0.000218,2]
[366833981,1750495849143,-261.864563,0.000218,2]
[366833982,1750495849153,-261.864563,0.000218,2]
[366833983,1750495849162,-202.672194,0.000218,2]
[366833984,1750495849173,-202.672194,0.000218,2]
[366833985,1750495849183,-151.0,0.000218,2]
[366833986,1750495849193,-1203.190816,0.000218,2]
[366833987,1750495849202,-1203.190816,0.000218,2]
[366833988,1750495849212,-151.0,0.000218,2]
[366833989,1750495849222,-150.0,0.00021802,2]
[366833990,1750495849233,-150.0,0.00021803,2]
[366833991,1750495849243,-1000.0,0.00021806,2]
[366833992,1750495849253,-1000.0,0.00021806,2]
[366833993,1750495849263,-150.0,0.00021808,2]
[366833994,1750495849273,-150.0,0.00021808,2]
[366833995,1750495849283,-150.0,0.0002181,2]
[366833996,1750495849293,-627.8698001,0.00021812,2]
[366833997,1750495849304,-925.03216785,0.00021812,2]
[366833998,1750495849313,-150.0,0.00021813,2]
[366833999,1750495849324,-150.0,0.00021814,2]
[366834000,1750495849334,-150.0,0.00021814,2]
[366834001,1750495849343,-150.0,0.00021819,2]
[366834002,1750495849353,-150.0,0.0002182,2]
[366834003,1750495849364,-150.0,0.0002182,2]
[366834004,1750495849374,-150.0,0.00021823,2]
[366834005,1750495849383,-150.0,0.00021825,2]
[366834006,1750495849393,-150.0,0.00021828,2]
[366834007,1750495849403,-150.0,0.00021829,2]
[366834008,1750495849413,-150.0,0.0002183,2]
[366834009,1750495849423,-150.0,0.00021834,2]
[366834010,1750495849432,-150.0,0.00021834,2]
[366834011,1750495849441,-150.0,0.00021837,2]
[366834012,1750495849451,-1000.0,0.00021838,2]
[366834013,1750495849461,-150.0,0.00021839,2]
[366834014,1750495849471,-150.0,0.00021841,2]
[366834015,1750495849481,-1000.0,0.00021844,2]
[366834016,1750495849490,-1000.0,0.00021848,2]
[366834017,1750495849500,-150.0,0.00021852,2]
[366834018,1750495849510,-150.0,0.00021853,2]
[366834019,1750495849520,-150.0,0.00021853,2]
[366834020,1750495849529,-150.0,0.00021855,2]
[366834021,1750495849539,-1000.0,0.00021855,2]
[366834022,1750495849549,-150.0,0.00021859,2]
[366834023,1750495849558,-150.0,0.00021859,2]
[366834024,1750495849568,-150.0,0.00021861,2]
[366834025,1750495849578,-1000.0,0.00021861,2]
[366834026,1750495849588,-150.0,0.00021862,2]
[366834027,1750495849597,-150.0,0.00021862,2]
[366834028,1750495849607,-150.0,0.00021862,2]
[366834029,1750495849617,-1000.0,0.00021864,2]
[366834030,1750495849626,-1000.0,0.00021865,2]
[366834031,1750495849635,-1000.0,0.00021866,2]
[366834032,1750495849646,-1000.0,0.00021871,2]
[366834033,1750495849656,-150.0,0.00021875,2]
[366834034,1750495849665,-150.0,0.00021875,2]
[366834035,1750495849676,-150.0,0.00021876,2]
[366834036,1750495849686,-1000.0,0.00021878,2]
[366834037,1750495849695,-150.0,0.00021882,2]
[366834038,1750495849706,-1000.0,0.00021887,2]
[366834039,1750495849717,-150.0,0.00021889,2]
[366834040,1750495849727,-150.0,0.00021892,2]
[366834041,1750495849737,-150.0,0.00021895,2]
[366834042,1750495849746,-1000.0,0.00021899,2]
[366834043,1750495849755,-700.0,0.000219,7]
[366834044,1750495849765,-150.0,0.000219,2]
[366834045,1750495849776,-150.0,0.00021901,2]
[366834046,1750495849786,-150.0,0.00021908,2]
[366834047,1750495849796,-150.0,0.00021912,2]
[366834048,1750495849806,-150.0,0.00021917,2]
[366834049,1750495849816,-150.0,0.00021918,2]
[366834050,1750495849826,-500.0,0.00021918,2]
[366834051,1750495849837,-500.0,0.00021918,2]
[366834052,1750495849847,-534.62605156,0.00021918,2]
[366834053,1750495849857,-323.7568463,0.00021918,2]
[366834054,1750495850205,-176.2431537,0.00021918,2]
[366834055,1750495850215,-218.00864361,0.00021918,2]
[366834056,1750495850225,-500.0,0.00021918,2]
[366834057,1750495850233,-500.0,0.00021918,2]
[366834058,1750495850243,-500.0,0.00021918,2]
[366834059,1750495850253,-500.0,0.00021918,2]
[366834060,1750495850264,-150.0,0.00021919,2]
[366834061,1750495850276,-1000.61808236,0.00021921,2]
[366834062,1750495850286,-1000.0,0.00021921,2]
[366834063,1750495850295,-181.79436086,0.00021921,2]
[366834064,1750495850305,-500.0,0.00021921,2]
[366834065,1750495850315,-500.0,0.00021921,2]
[366834066,1750495850325,-500.0,0.00021921,2]
[366834067,1750495850334,-500.0,0.00021921,2]
[366834068,1750495850344,-500.49750435,0.00021921,2]
[366834069,1750495850354,-500.0,0.00021921,2]
[366834070,1750495850364,-1000.0,0.00021921,2]
[366834071,1750495850374,-540.30081214,0.00021921,2]
[366834072,1750495850384,-502.33983832,0.00021921,2]
[366834073,1750495850394,-500.0,0.00021921,2]
[366834074,1750495850403,-1203.190816,0.00021921,7]
[366834075,1750495850413,-1203.190816,0.00021921,7]
[366834076,1750495850422,-1000.0,0.00021922,2]
[366834077,1750495850432,-150.0,0.00021924,2]
[366834078,1750495850442,-1000.0,0.00021926,2]
[366834079,1750495850452,-6261.12957888,0.00021934,2]
[366834080,1750495850462,-1000.0,0.00021934,2]
[366834081,1750495850472,-151.0,0.00021934,7]
[366834082,1750495850482,-202.672194,0.00021934,7]
[366834083,1750495850492,-202.672194,0.00021934,7]
[366834084,1750495850502,-151.0,0.00021934,7]
[366834085,1750495850512,-150.0,0.00021935,2]
[366834086,1750495850521,-10960.55501628,0.00021935,2]
[366834087,1750495850530,-275.0,0.0002194,2]
[366834088,1750495850539,-51127.0,0.00022,2]
[366834089,1750495850548,-311.444243,0.00022,7]
[366834090,1750495850558,-311.444243,0.00022,7]
[366834091,1750495850567,-151.0,0.00022,7]
[366834092,1750495850576,-151.0,0.00022,7]
[366834093,1750495850587,-451.89886,0.00022,7]
[366834094,1750495850596,-451.89886,0.00022,7]
[366834095,1750495850606,-151.0,0.00022,7]
[366834096,1750495850616,-151.0,0.00022,7]
[366834097,1750495850625,-197.432091,0.00022,7]
[366834098,1750495850635,-151.0,0.00022,7]
[366834099,1750495850645,-498.259736,0.00022,7]
[366834100,1750495850655,-498.259736,0.00022,7]
[366834101,1750495850665,-1289.885616,0.00022,7]
[366834102,1750495850675,-1289.885616,0.00022,7]
[366834103,1750495850685,-223.987077,0.00022,7]
[366834104,1750495850695,-223.987077,0.00022,7]
[366834105,1750495850705,-151.0,0.00022,7]
[366834106,1750495850715,-484.07947,0.00022,7]
[366834107,1750495850726,-484.07947,0.00022,7]
[366834108,1750495850736,-151.0,0.00022,7]
[366834109,1750495850746,-842.903434,0.00022,7]
[366834110,1750495850756,-842.903434,0.00022,7]
[366834111,1750495850766,-151.0,0.00022,7]
[366834112,1750495850776,-165.380302,0.00022,7]
[366834113,1750495850786,-154.179895,0.00022,7]
[366834114,1750495850796,-957.767967,0.00022,7]
[366834115,1750495850806,-151.0,0.00022,7]
[366834116,1750495850816,-154.179895,0.00022,7]
[366834117,1750495850827,-957.767967,0.00022,7]
[366834118,1750495850836,-151.0,0.00022,7]
[366834119,1750495850846,-315.379423,0.00022,7]
[366834120,1750495850856,-315.379423,0.00022,7]
[366834121,1750495850865,-537.610501,0.00022,7]
[366834122,1750495850874,-537.610501,0.00022,7]
[366834123,1750495850884,-151.0,0.00022,7]
[366834124,1750495850894,-1520.647094,0.00022,7]
[366834125,1750495850904,-1520.647094,0.00022,7]
[366834126,1750495850914,-6901.933708,0.00022,7]
[366834127,1750495850924,-6901.933708,0.00022,7]
[366834128,1750495850934,-151.0,0.00022,7]
[366834129,1750495850944,-264.046825,0.00022,7]
[366834130,1750495850954,-264.046825,0.00022,7]
[366834131,1750495850963,-233.395262,0.00022,7]
[366834132,1750495850973,-233.395262,0.00022,7]
[366834133,1750495850983,-219.724142,0.00022,7]
[366834134,1750495850992,-219.724142,0.00022,7]
[366834135,1750495851002,-151.0,0.00022,7]
[366834136,1750495851012,-151.0,0.00022,7]
[366834137,1750495851022,-151.0,0.00022,7]
[366834138,1750495851031,-414.357737,0.00022,7]
[366834139,1750495851044,-414.357737,0.00022,7]
[366834140,1750495851053,-151.0,0.00022,7]
[366834141,1750495851063,-261.864563,0.00022,7]
[366834142,1750495851073,-261.864563,0.00022,7]
[366834143,1750495851083,-202.672194,0.00022,7]
[366834144,1750495851092,-202.672192,0.00022,7]
[366834145,1750495851101,-151.0,0.00022,7]
[366834146,1750495851110,-834.26476573,0.00022,7]
[366834147,1750495851120,-1203.190816,0.00022,7]
[366834148,1750495851130,-1203.190812,0.00022,7]
[366834149,1750495851140,-151.0,0.00022,7]
[366834150,1750495851149,-150.0,0.00022001,2]
[366834151,1750495851159,-150.0,0.00022092,2]
[366834152,1750495851168,-275.0,0.00022103,2]
[366834153,1750495851178,-1000.0,0.00022139,2]
[366834154,1750495851188,-162.380719,0.00022168,2]
[366834155,1750495851197,-301.13,0.00022219,2]
[366834156,1750495851207,-275.0,0.00022222,2]
[366834157,1750495851217,-264.046825,0.00022222,7]
[366834158,1750495851226,-264.046825,0.00022222,7]
[366834159,1750495851235,-233.395262,0.00022222,7]
[366834160,1750495851245,-233.395262,0.00022222,7]
[366834161,1750495851254,-1544.53229226,0.00022239,7]
[366834162,1750495851806,-848.82357819,0.00022239,7]
[366834163,1750495919964,1649.0,0.000247,120]
[366834164,1750495922118,386.0,0.000247,120]
[366834165,1750495922902,443.0,0.000247,120]
[366834166,1750495923691,191.0,0.000247,120]
[366834167,1750496339519,167.21703626,0.000247,120]
[366834171,1750496686068,300.0,0.000246,120]
[366834174,1750496938126,316.00814652,0.000247,120]
[366834199,1750497032390,-385.63,0.00013699,2]
[366834200,1750497032400,-214.37,0.00014595,4]
[366834201,1750497032411,-385.63,0.00014595,4]
[366834202,1750497032421,-157.88,0.00015041,2]
[366834203,1750497032430,-0.51,0.0001548,4]
[366834204,1750497032467,-599.49,0.0001548,4]
[366834205,1750497032477,-300.0,0.00015852,2]
[366834206,1750497032486,-339.79606995,0.00015852,2]
[366834207,1750497032513,-860.20393005,0.00015852,2]
[366834208,1750497032523,-300.0,0.00015853,2]
[366834209,1750497032532,-264.0,0.00015853,2]
[366834210,1750497032542,-4520.69432773,0.00015854,2]
[366834211,1750497032554,-600.0,0.00015854,2]
[366834212,1750497032602,-541.8580894,0.00015854,2]
[366834213,1750497032616,-600.0,0.00015854,2]
[366834214,1750497032635,-2992.79198282,0.00015854,2]
[366834215,1750497032647,-600.0,0.00015854,2]
[366834216,1750497032683,-276.65889505,0.00015854,2]
[366834217,1750497032694,-578.0878976,0.00015854,2]
[366834218,1750497032780,-858.11596762,0.00015854,2]
[366834219,1750497032789,-182.70842527,0.00016247,2]
[366834220,1750497032801,-317.29157473,0.00016247,2]
[366834221,1750497032811,-600.0,0.0001658,4]
[366834222,1750497032820,-300.0,0.0001658,2]
[366834223,1750497032830,-250.0,0.0001658,2]
[366834224,1750497032839,-600.0,0.00017198,4]
[366834225,1750497032850,-250.0,0.00017198,2]
[366834226,1750497032860,-523.0,0.00017205,2]
[366834227,1750497032870,-1680.0,0.00017421,2]
[366834228,1750497032879,-200.0,0.00017938,2]
[366834229,1750497032889,-2031.13,0.00017974,2]
[366834230,1750497032901,-6606.6137894,0.00018014,2]
[366834231,1750497032909,-1000.0,0.00018027,2]
[366834232,1750497032918,-167.27,0.00018046,2]
[366834233,1750497032929,-2089.54130772,0.0001807,2]
[366834234,1750497032938,-10584.48,0.00018103,2]
[366834235,1750497032950,-2751.0,0.00018221,2]
[366834236,1750497032960,-1665.6,0.00018251,2]
[366834237,1750497032970,-150.0,0.0001827,2]
[366834238,1750497032979,-610.0,0.00018436,2]
[366834239,1750497032988,-2228.39,0.00018555,2]
[366834240,1750497032998,-1261.3,0.00018588,2]
[366834241,1750497033008,-600.0,0.00018605,4]
[366834242,1750497033017,-250.0,0.00018605,2]
[366834243,1750497033027,-2448.45022066,0.00018647,2]
[366834244,1750497033037,-250.0,0.0001866,2]
[366834245,1750497033047,-2097.41,0.00018692,2]
[366834246,1750497033057,-151.0,0.00018753,2]
[366834247,1750497033068,-170.94288873,0.00018753,2]
[366834248,1750497033079,-23900.0,0.00018764,2]
[366834249,1750497033090,-151.0,0.00018808,2]
[366834250,1750497033100,-151.0,0.00018863,2]
[366834251,1750497033110,-150.0,0.00018865,2]
[366834252,1750497033120,-151.0,0.00018918,2]
[366834253,1750497033130,-151.0,0.00018973,2]
[366834254,1750497033140,-666.0,0.00019178,2]
[366834255,1750497033150,-402.88,0.00019254,2]
[366834256,1750497033159,-29707.04198394,0.00019349,2]
[366834257,1750497033170,-200.0,0.00019718,2]
[366834258,1750497033179,-385.63,0.00020187,2]
[366834259,1750497033190,-1000.0,0.00020281,2]
[366834260,1750497033200,-250.84,0.0002033,2]
[366834261,1750497033210,-151.0,0.0002053,2]
[366834262,1750497033220,-151.0,0.0002053,2]
[366834263,1750497033230,-151.0,0.0002053,2]
[366834264,1750497033240,-151.0,0.0002053,2]
[366834265,1750497033251,-1957.856,0.0002053,2]
[366834266,1750497033261,-151.0,0.0002053,2]
[366834267,1750497033271,-151.0,0.0002053,2]
[366834268,1750497033281,-151.0,0.0002053,2]
[366834269,1750497033291,-151.0,0.0002053,2]
[366834270,1750497033301,-151.0,0.0002053,2]
[366834271,1750497033311,-151.0,0.0002053,2]
[366834272,1750497033321,-151.0,0.0002053,2]
[366834273,1750497033331,-151.0,0.0002053,2]
[366834274,1750497033340,-300.0,0.0002053,2]
[366834275,1750497033350,-151.0,0.0002053,2]
[366834276,1750497033360,-300.0,0.0002053,2]
[366834277,1750497033370,-151.0,0.0002053,2]
[366834278,1750497033379,-300.0,0.0002053,2]
[366834279,1750497033389,-151.0,0.0002053,2]
[366834280,1750497033398,-300.0,0.0002053,2]
[366834281,1750497033408,-151.0,0.0002053,2]
[366834282,1750497033417,-300.0,0.0002053,2]
[366834283,1750497033427,-151.0,0.0002053,2]
[366834284,1750497033436,-300.0,0.0002053,2]
[366834285,1750497033446,-151.0,0.0002053,2]
[366834286,1750497033456,-300.0,0.0002053,2]
[366834287,1750497033466,-151.0,0.0002053,2]
[366834288,1750497033477,-300.0,0.0002053,2]
[366834289,1750497033487,-300.0,0.0002053,2]
[366834290,1750497033497,-151.0,0.0002053,2]
[366834291,1750497033507,-151.0,0.0002053,2]
[366834292,1750497033517,-300.0,0.0002053,2]
[366834293,1750497033526,-300.0,0.0002053,2]
[366834294,1750497033536,-300.0,0.0002053,2]
[366834295,1750497033547,-207.4,0.0002053,2]
[366834296,1750497033557,-300.0,0.0002053,2]
[366834297,1750497033567,-300.0,0.0002053,2]
[366834298,1750497033577,-300.0,0.0002053,2]
[366834299,1750497033586,-668.65185757,0.0002053,2]
[366834300,1750497033597,-2030.296672,0.00020585,2]
[366834301,1750497033607,-2105.41764886,0.0002064,2]
[366834302,1750497033619,-2183.31810187,0.00020695,2]
[366834303,1750497033628,-270.0,0.00020716,2]
[366834304,1750497033637,-2264.10087164,0.0002075,2]
[366834305,1750497033648,-270.0,0.00020774,2]
[366834306,1750497033658,-2000.0,0.000208,2]
[366834307,1750497033668,-2347.87260389,0.00020805,2]
[366834308,1750497033677,-2434.74389024,0.0002086,2]
[366834309,1750497033687,-2524.82941417,0.00020915,2]
[366834310,1750497033697,-1000.0,0.00020925,2]
[366834311,1750497033707,-9999.99,0.00020951,2]
[366834312,1750497033717,-9999.99,0.00020951,2]
[366834313,1750497033727,-150.99,0.00020951,2]
[366834314,1750497033737,-454.67,0.00020951,2]
[366834315,1750497033748,-773.31,0.00020951,2]
[366834316,1750497033758,-9999.99,0.00020951,2]
[366834317,1750497033767,-8960.26,0.00020951,2]
[366834318,1750497033777,-150.99,0.00020951,2]
[366834319,1750497033787,-999.99,0.00020951,2]
[366834320,1750497033797,-2618.2481025,0.0002097,2]
[366834321,1750497033806,-455.59452833,0.00020973,2]
[366834322,1750497033816,-156.71,0.00020986,2]
[366834323,1750497033827,-2715.12328229,0.00021025,2]
[366834324,1750497033837,-2815.58284374,0.0002108,2]
[366834325,1750497033846,-2919.75940895,0.00021135,2]
[366834326,1750497033856,-244.49,0.00021154,2]
[366834327,1750497033866,-461.95,0.00021155,2]
[366834328,1750497033876,-461.95,0.00021155,2]
[366834329,1750497033886,-461.95,0.00021155,2]
[366834330,1750497033897,-460.52,0.00021155,2]
[366834331,1750497033907,-4130.58,0.00021164,2]
[366834332,1750497033917,-244.49,0.00021164,2]
[366834333,1750497033926,-500.0,0.00021172,2]
[366834334,1750497033938,-36147.7929,0.00021172,2]
[366834335,1750497033948,-1000.0,0.00021172,2]
[366834336,1750497033958,-1001.0092,0.00021173,2]
[366834337,1750497033969,-45056.1876,0.00021174,2]
[366834338,1750497033980,-3027.79050709,0.0002119,2]
[366834339,1750497033991,-5348.0,0.00021229,2]
[366834340,1750497034000,-3139.81875585,0.00021245,2]
[366834341,1750497034011,-244.49,0.00021262,2]
[366834342,1750497034021,-151.0,0.00021272,2]
[366834343,1750497034031,-151.0,0.00021272,2]
[366834344,1750497034041,-151.0,0.00021272,2]
[366834345,1750497034050,-579.460892,0.00021272,2]
[366834346,1750497034061,-579.460892,0.00021272,2]
[366834347,1750497034070,-151.0,0.00021272,2]
[366834348,1750497034080,-151.632637,0.00021272,2]
[366834349,1750497034090,-336.654073,0.00021272,2]
[366834350,1750497034100,-336.654073,0.00021272,2]
[366834351,1750497034110,-151.651537,0.00021272,2]
[366834352,1750497034120,-151.651537,0.00021272,2]
[366834353,1750497034130,-152.187438,0.00021272,2]
[366834354,1750497034140,-151.0,0.00021274,2]